bitfinex-derivatives/quotes_BTCF0:USTF0_20210706
["timestamp","ask_amount","ask_price","bid_price","bid_amount"]
[1625538638372,3.48609674,33763.0,33756.0,0.06251027]
[1625538638624,3.48609674,33763.0,33760.0,0.53815088]
[1625538638725,1.912,33763.0,33760.0,0.86105088]
[1625538638925,1.912,33763.0,33760.0,0.86456113]
[1625538639077,0.921,33763.0,33760.0,0.86456113]
[1625538639176,1.57318246,33764.0,33760.0,0.86456113]
[1625538639479,1.81359223,33765.0,33760.0,1.38233896]
[1625538639677,1.81359223,33765.0,33760.0,1.44133896]
[1625538640179,0.24057544,33765.0,33760.0,0.92356113]
[1625538640630,0.24057544,33765.0,33764.0,0.24057544]
[1625538640730,0.24057544,33765.0,33764.0,0.29757544]
[1625538641833,0.24057544,33765.0,33764.0,0.30108529]
[1625538643138,0.24057544,33765.0,33764.0,0.29757544]
[1625538644591,1.57030955,33770.0,33764.0,0.29757544]
[1625538644689,1.62930955,33770.0,33764.0,0.29757544]
[1625538645191,1.57030955,33770.0,33764.0,0.29757544]
[1625538645895,1.56959689,33771.0,33764.0,0.29757544]
[1625538646447,1.62859689,33771.0,33764.0,0.29757544]
[1625538646648,1.68759689,33771.0,33770.0,0.24057544]
[1625538646848,1.68759689,33771.0,33770.0,0.51485544]
[1625538646997,0.118,33771.0,33770.0,0.51485544]
[1625538651609,0.118,33771.0,33770.0,0.24057544]
[1625538651959,1.51188924,33771.0,33770.0,0.24057544]
[1625538652363,3.16961307,33771.0,33770.0,0.24057544]
[1625538652663,3.41018851,33771.0,33764.0,0.24057544]
[1625538653116,3.32058851,33771.0,33764.0,0.24057544]
[1625538653516,3.32531981,33765.0,33764.0,0.24057544]
[1625538653615,3.47331981,33765.0,33764.0,0.24057544]
[1625538653967,3.38431981,33765.0,33764.0,0.24057544]
[1625538654170,7.63371981,33765.0,33764.0,0.24057544]
[1625538654720,7.87429525,33765.0,33764.0,0.24057544]
[1625538655469,3.56589525,33765.0,33764.0,0.24057544]
[1625538655569,3.26238525,33765.0,33764.0,0.24057544]
[1625538656424,2.85513412,33765.0,33764.0,0.24057544]
[1625538656923,1.46086043,33765.0,33764.0,0.24408511]
[1625538657776,0.24057544,33765.0,33764.0,0.24408511]
[1625538658929,0.24057544,33765.0,33764.0,0.30108511]
[1625538659028,0.24057544,33765.0,33764.0,0.60868511]
[1625538659881,1.2864259,33765.0,33764.0,0.60868511]
[1625538660481,0.24057544,33765.0,33764.0,0.60868511]
[1625538664537,0.76356786,33765.0,33764.0,0.60868511]
[1625538665488,0.52299242,33765.0,33764.0,0.60868511]
[1625538666086,0.05409242,33765.0,33764.0,0.60868511]
[1625538666889,1.04535387,33769.0,33764.0,0.60868511]
[1625538666990,1.04535387,33769.0,33768.0,0.53815088]
[1625538666991,1.10435387,33769.0,33768.0,0.53815088]
[1625538667439,1.10435387,33769.0,33768.0,0.54166015]
[1625538667639,1.04535387,33769.0,33768.0,0.54166015]
[1625538667792,1.04535387,33769.0,33768.0,0.60066015]
[1625538668342,1.04506669,33773.0,33768.0,0.60066015]
[1625538668443,1.04506669,33773.0,33772.0,4.9166]
[1625538668545,1.04506669,33773.0,33772.0,5.25985]
[1625538668644,1.04506669,33773.0,33772.0,5.31885]
[1625538668747,1.04506669,33773.0,33772.0,5.38135892]
[1625538668947,1.04501116,33774.0,33772.0,5.8625098]
[1625538669345,0.54431116,33774.0,33773.0,0.00350834]
[1625538669447,0.54431116,33774.0,33773.0,0.06250834]
[1625538669548,0.54431116,33774.0,33773.0,0.12150834]
[1625538669650,0.54431116,33774.0,33773.0,0.17850834]
[1625538670001,1.04495528,33780.0,33773.0,0.17850834]
[1625538670299,1.04495528,33780.0,33774.0,0.5]
[1625538670400,1.04495528,33780.0,33775.0,0.057]
[1625538670503,1.04495528,33780.0,33775.0,0.175]
[1625538670601,1.21906338,33783.0,33775.0,0.17850808]
[1625538670752,1.21906338,33783.0,33775.0,0.67850808]
[1625538670849,1.21906338,33783.0,33776.0,0.00350805]
[1625538671001,1.21804912,33784.0,33782.0,0.80050088]
[1625538671504,1.39203129,33786.0,33782.0,0.80050088]
[1625538671505,1.21801707,33786.0,33782.0,0.80050088]
[1625538671957,1.21801707,33786.0,33782.0,0.85950088]
[1625538672507,0.24057544,33787.0,33782.0,0.85950088]
[1625538672856,1.45766973,33787.0,33782.0,0.85950088]
[1625538672956,1.45766973,33787.0,33782.0,0.80050088]
[1625538673058,1.57566973,33787.0,33782.0,0.48115088]
[1625538673156,1.57566973,33787.0,33782.0,0.53815088]
[1625538673258,1.21728735,33786.0,33782.0,0.53815088]
[1625538673461,1.21728735,33786.0,33782.0,0.59715088]
[1625538673760,1.45782491,33787.0,33782.0,0.59715088]
[1625538674711,0.24057544,33787.0,33782.0,0.53815088]
[1625538674811,0.29957544,33787.0,33782.0,0.53815088]
[1625538675014,0.29957544,33787.0,33786.0,0.24057544]
[1625538675164,0.35857544,33787.0,33786.0,0.24057544]
[1625538675361,2.96541465,33787.0,33786.0,0.24057544]
[1625538675813,8.28401465,33787.0,33786.0,0.24057544]
[1625538676013,8.28401465,33787.0,33782.0,0.53815088]
[1625538676113,8.58336465,33787.0,33782.0,0.48115088]
[1625538676814,2.60684652,33783.0,33782.0,0.48115088]
[1625538676917,2.66584652,33783.0,33782.0,0.48115088]
[1625538677015,2.96542196,33783.0,33782.0,0.48115088]
[1625538678169,2.90642196,33783.0,33782.0,0.48115088]
[1625538678573,2.96542196,33783.0,33782.0,0.48115088]
[1625538679571,4.53033901,33783.0,33782.0,0.48115088]
[1625538680072,4.53033901,33783.0,33774.0,0.24057544]
[1625538680575,1.21723777,33777.0,33774.0,0.24057544]
[1625538680676,1.61314777,33777.0,33774.0,0.24057544]
[1625538680876,2.60854182,33775.0,33774.0,0.24057544]
[1625538680974,2.72654182,33775.0,33774.0,0.24057544]
[1625538681075,3.2076927,33775.0,33774.0,0.24057544]
[1625538681577,8.0807927,33775.0,33774.0,0.24057544]
[1625538681977,8.0807927,33775.0,33771.0,0.24057544]
[1625538682680,2.60976838,33772.0,33771.0,0.24057544]
[1625538682780,2.66876838,33772.0,33771.0,0.24057544]
[1625538682880,2.60976838,33772.0,33771.0,0.24057544]
[1625538683184,1.21790351,33772.0,33771.0,0.24057544]
[1625538683481,0.059,33772.0,33771.0,0.24057544]
[1625538683630,1.45841647,33773.0,33771.0,0.24057544]
[1625538683731,1.51741647,33773.0,33771.0,0.24057544]
[1625538684030,1.57641647,33773.0,33771.0,0.24057544]
[1625538684333,0.35857544,33773.0,33771.0,0.24057544]
[1625538684783,1.21821034,33772.0,33771.0,0.24057544]
[1625538684885,1.27721034,33772.0,33771.0,0.24057544]
[1625538684985,1.33621034,33772.0,33771.0,0.24057544]
[1625538685937,2.72878949,33772.0,33771.0,0.24057544]
[1625538687387,2.72878949,33772.0,33765.0,0.24057544]
[1625538687938,1.21908691,33769.0,33765.0,0.24057544]
[1625538688040,1.67546691,33769.0,33765.0,0.24057544]
[1625538689088,0.24057544,33766.0,33765.0,0.24057544]
[1625538689188,0.29957544,33766.0,33765.0,0.24057544]
[1625538689590,0.9966051,33766.0,33765.0,0.24057544]
[1625538690692,0.9376051,33766.0,33765.0,0.24408474]
[1625538690793,0.9376051,33766.0,33765.0,0.30108474]
[1625538690892,0.24057544,33766.0,33765.0,0.30108474]
[1625538691092,0.24057544,33766.0,33765.0,0.36008474]
[1625538691391,0.24057544,33766.0,33765.0,1.04968868]
[1625538693756,0.24057544,33766.0,33765.0,0.99068868]
[1625538694255,0.24057544,33766.0,33765.0,1.28552868]
[1625538694959,0.24057544,33766.0,33765.0,2.49287798]
[1625538695107,0.24057544,33766.0,33765.0,2.55187798]
[1625538695208,0.24057544,33766.0,33765.0,2.49287798]
[1625538697563,0.24057544,33766.0,33765.0,1.28552868]
[1625538699319,0.24057544,33766.0,33765.0,1.34452868]
[1625538699717,0.24057544,33766.0,33765.0,3.58814182]
[1625538700269,0.24057544,33766.0,33765.0,3.52914182]
[1625538701319,0.32797145,33766.0,33765.0,2.32104244]
[1625538701974,0.93854485,33766.0,33765.0,1.28552868]
[1625538702070,0.93854485,33766.0,33765.0,0.99068868]
[1625538702472,0.24057544,33766.0,33765.0,2.02748902]
[1625538704175,0.24057544,33766.0,33765.0,0.99068868]
[1625538704176,0.93859453,33766.0,33765.0,0.99068868]
[1625538704579,0.24057544,33766.0,33765.0,0.99068868]
[1625538704976,0.24057544,33766.0,33765.0,2.02755537]
[1625538705877,0.24057544,33766.0,33765.0,2.08655537]
[1625538706428,0.32799095,33766.0,33765.0,3.29573229]
[1625538706928,0.24057544,33766.0,33765.0,3.29573229]
[1625538708379,0.17482474,33767.0,33765.0,3.29573229]
[1625538708478,0.17482474,33767.0,33765.0,3.50635229]
[1625538708779,0.17482474,33767.0,33766.0,1.73044386]
[1625538708881,0.17482474,33767.0,33766.0,1.78744386]
[1625538709183,0.08741543,33767.0,33766.0,2.0280193]
[1625538709538,0.17482738,33767.0,33766.0,2.0280193]
[1625538709884,0.08741543,33767.0,33766.0,2.0280193]
[1625538710438,0.78558067,33767.0,33766.0,0.9918583]
[1625538710537,0.84458067,33767.0,33766.0,0.9918583]
[1625538711937,0.78558067,33767.0,33766.0,1.0508583]
[1625538712038,0.78558067,33767.0,33766.0,1.3858783]
[1625538712238,0.78558067,33767.0,33766.0,1.3268783]
[1625538712439,0.17484073,33767.0,33766.0,2.36299822]
[1625538712840,0.08741543,33767.0,33766.0,2.36299822]
[1625538713243,0.17483832,33767.0,33766.0,2.36299822]
[1625538714094,0.78586182,33767.0,33766.0,2.36299822]
[1625538714744,0.08741543,33767.0,33766.0,2.36299822]
[1625538715950,0.78622364,33767.0,33766.0,3.57321285]
[1625538716751,0.78622364,33767.0,33766.0,3.63221285]
[1625538716855,0.78622364,33767.0,33766.0,3.57321285]
[1625538719507,1.31050302,33767.0,33766.0,4.09189772]
[1625538722009,0.61169481,33767.0,33766.0,4.09189772]
[1625538722108,1.31073409,33767.0,33766.0,4.09189772]
[1625538728579,1.31073409,33767.0,33766.0,4.15089772]
[1625538731887,1.31073409,33767.0,33766.0,4.15966947]
[1625538731990,0.61169481,33767.0,33766.0,5.54402564]
[1625538732138,0.61169481,33767.0,33766.0,5.53525389]
[1625538732488,1.3114921,33767.0,33766.0,5.53525389]
[1625538732688,1.3114921,33767.0,33766.0,5.54402539]
[1625538732990,0.61169481,33767.0,33766.0,5.54402539]
[1625538734041,0.61169481,33767.0,33766.0,5.53525389]
[1625538734394,2.36245149,33767.0,33766.0,5.53525389]
[1625538734592,2.36245149,33767.0,33766.0,5.5440255]
[1625538735495,2.36245149,33767.0,33766.0,5.55564493]
[1625538735695,1.31203249,33767.0,33766.0,7.11455301]
[1625538735996,0.61169481,33767.0,33766.0,7.11455301]
[1625538736097,0.61169481,33767.0,33766.0,12.26035301]
[1625538736552,1.31229245,33767.0,33766.0,12.26035301]
[1625538736652,1.22487702,33767.0,33766.0,12.26035301]
[1625538737602,1.22487702,33767.0,33766.0,12.2515814]
[1625538738704,2.27587467,33767.0,33766.0,12.2515814]
[1625538744169,1.22487702,33767.0,33766.0,12.2603524]
[1625538747527,1.22487702,33767.0,33766.0,12.2013524]
[1625538747627,1.22487702,33767.0,33766.0,7.0555524]
[1625538747727,1.43425702,33767.0,33766.0,7.03516197]
[1625538747926,1.43425702,33767.0,33766.0,6.97816197]
[1625538748027,1.49325702,33767.0,33766.0,6.64314197]
[1625538748479,3.77103866,33767.0,33766.0,5.08423389]
[1625538748779,5.1727593,33767.0,33766.0,3.69987772]
[1625538749480,5.65391018,33767.0,33766.0,3.69987772]
[1625538750085,5.65391018,33767.0,33766.0,2.48966309]
[1625538750936,7.23101276,33767.0,33766.0,2.48966309]
[1625538751635,7.29001276,33767.0,33766.0,2.48966309]
[1625538751937,7.29001276,33767.0,33766.0,0.76276917]
[1625538752939,7.29001276,33767.0,33766.0,0.3307976]
[1625538753390,7.29001276,33767.0,33766.0,0.2440843]
[1625538754090,7.29001276,33767.0,33766.0,0.08671609]
[1625538754694,7.29001276,33767.0,33766.0,0.00350946]
[1625538755145,7.29001276,33767.0,33765.0,0.00350946]
[1625538755245,7.29001276,33767.0,33765.0,0.09016846]
[1625538755545,0.24057544,33766.0,33765.0,0.09016846]
[1625538755643,0.29957544,33766.0,33765.0,0.09016846]
[1625538755744,6.83792351,33766.0,33764.0,0.08665481]
[1625538755944,6.83792351,33766.0,33765.0,0.00350947]
[1625538756247,0.35857544,33766.0,33765.0,0.00350947]
[1625538756649,6.83545183,33766.0,33765.0,0.00350947]
[1625538758299,6.83545183,33766.0,33764.0,0.08665481]
[1625538758451,6.83545183,33766.0,33763.0,0.08664375]
[1625538758900,0.88381746,33766.0,33764.0,0.00350956]
[1625538759001,0.35857544,33766.0,33764.0,0.00350956]
[1625538759403,6.47458271,33765.0,33764.0,0.00350956]
[1625538759503,6.53358271,33765.0,33764.0,0.00350956]
[1625538759602,6.59258271,33765.0,33764.0,0.00350956]
[1625538759702,6.83315815,33765.0,33763.0,0.08664375]
[1625538759953,6.83315815,33765.0,33762.0,0.08668449]
[1625538760457,6.83315815,33765.0,33763.0,0.00350954]
[1625538760705,4.89956888,33763.0,33762.0,0.08668449]
[1625538760806,5.01756888,33763.0,33762.0,0.08668449]
[1625538760906,9.14966888,33763.0,33762.0,0.08668449]
[1625538761006,9.14966888,33763.0,33762.0,0.09019409]
[1625538761809,9.14966888,33763.0,33762.0,0.0035096]
[1625538762358,9.14966888,33763.0,33762.0,0.52301336]
[1625538762557,4.95856888,33763.0,33762.0,0.52301336]
[1625538762760,4.89956888,33763.0,33762.0,0.52301336]
[1625538762862,4.89956888,33763.0,33762.0,2.25384031]
[1625538762961,4.95856888,33763.0,33762.0,2.25384031]
[1625538763162,2.33391856,33763.0,33762.0,3.46463949]
[1625538763260,2.27491856,33763.0,33762.0,3.46463949]
[1625538763360,2.33391856,33763.0,33762.0,3.46463949]
[1625538763465,2.27491856,33763.0,33762.0,3.46463949]
[1625538763562,2.33391856,33763.0,33762.0,3.46463949]
[1625538763962,2.27491856,33763.0,33762.0,3.46463949]
[1625538764063,2.33391856,33763.0,33762.0,3.46463949]
[1625538764167,2.27491856,33763.0,33762.0,3.46463949]
[1625538764264,2.33391856,33763.0,33762.0,3.46463949]
[1625538764564,2.27491856,33763.0,33762.0,3.46463949]
[1625538764768,2.33391856,33763.0,33762.0,3.46463949]
[1625538765066,1.28402344,33763.0,33762.0,4.8490481]
[1625538765470,2.33333398,33763.0,33762.0,3.52163949]
[1625538767424,2.27433398,33763.0,33762.0,3.52163949]
[1625538767574,1.22502344,33763.0,33762.0,4.90446235]
[1625538767725,1.28402344,33763.0,33762.0,4.90446235]
[1625538768624,1.22502344,33763.0,33762.0,4.90446235]
[1625538769076,0.52503504,33763.0,33762.0,4.90446235]
[1625538769378,1.2242986,33764.0,33762.0,4.90446235]
[1625538769627,1.2242986,33764.0,33763.0,4.83793472]
[1625538769727,1.2242986,33764.0,33763.0,4.89844372]
[1625538770580,0.5247214,33764.0,33763.0,4.89844372]
[1625538770677,0.5247214,33764.0,33763.0,4.89493472]
[1625538771280,0.24057544,33765.0,33763.0,4.89493472]
[1625538771378,0.9401241,33765.0,33763.0,4.89493472]
[1625538771727,0.9401241,33765.0,33764.0,0.00350886]
[1625538772029,0.9401241,33765.0,33764.0,5.08044525]
[1625538772131,0.9401241,33765.0,33764.0,5.13744525]
[1625538772631,1.46482289,33765.0,33764.0,5.13744525]
[1625538773187,0.24057544,33765.0,33764.0,5.13744525]
[1625538773583,0.32817067,33765.0,33764.0,5.13744525]
[1625538773884,0.24057544,33765.0,33764.0,5.13744525]
[1625538774086,0.24057544,33765.0,33764.0,5.37802069]
[1625538774385,0.32816598,33765.0,33764.0,5.37802069]
[1625538775691,0.32816598,33765.0,33764.0,5.43702069]
[1625538776242,0.32816598,33765.0,33764.0,5.44859938]
[1625538776491,0.24057544,33765.0,33764.0,7.00178737]
[1625538781555,0.24057544,33765.0,33764.0,6.94278737]
[1625538782004,0.24057544,33765.0,33764.0,7.00178737]
[1625538783358,0.24057544,33765.0,33764.0,6.94278737]
[1625538783560,0.24057544,33765.0,33764.0,7.00178737]
[1625538785010,0.08756066,33768.0,33764.0,6.52063649]
[1625538785110,0.14656066,33768.0,33764.0,6.52063649]
[1625538785209,0.14656066,33768.0,33765.0,0.01157616]
[1625538785460,0.14656066,33768.0,33766.0,0.00350836]
[1625538785560,0.14656066,33768.0,33767.0,4.83078723]
[1625538785661,0.14656066,33768.0,33767.0,4.88778723]
[1625538786014,0.14656066,33768.0,33767.0,4.89129559]
[1625538786112,0.3871361,33768.0,33767.0,5.13187103]
[1625538787366,0.3281361,33768.0,33767.0,5.13187103]
[1625538788825,0.3871361,33768.0,33767.0,5.13187103]
[1625538790978,0.3871361,33768.0,33767.0,5.19087103]
[1625538791079,0.73671345,33768.0,33767.0,5.19087103]
[1625538791333,0.3871361,33768.0,33767.0,5.19087103]
[1625538791632,0.14656066,33768.0,33767.0,5.19087103]
[1625538791731,0.08756066,33768.0,33767.0,5.19087103]
[1625538791932,0.14656066,33768.0,33767.0,5.19087103]
[1625538792633,0.08756066,33768.0,33767.0,5.19087103]
[1625538795086,0.08751584,33769.0,33767.0,5.19087103]
[1625538795388,0.08751584,33769.0,33768.0,0.00350814]
[1625538795487,0.08751584,33769.0,33768.0,0.06250814]
[1625538795887,0.08751584,33769.0,33768.0,4.9049183]
[1625538795987,0.08751584,33769.0,33768.0,4.9619183]
[1625538798992,0.4370175,33769.0,33768.0,4.9619183]
[1625538799345,0.4370175,33769.0,33768.0,4.9029183]
[1625538800598,0.4370175,33769.0,33768.0,4.9619183]
[1625538801546,0.08751584,33769.0,33768.0,4.9619183]
[1625538801796,0.08751584,33769.0,33768.0,4.97068854]
[1625538801901,0.43697761,33770.0,33768.0,4.97068854]
[1625538802196,0.43697761,33770.0,33769.0,4.83637383]
[1625538802296,0.43697761,33770.0,33769.0,4.89688191]
[1625538803550,0.43697761,33770.0,33769.0,9.74138191]
[1625538804405,0.08749911,33770.0,33769.0,9.74138191]
[1625538805004,0.34943123,33770.0,33769.0,8.35956082]
[1625538805506,0.8734977,33770.0,33769.0,8.35956082]
[1625538806005,0.8734977,33770.0,33769.0,8.36833097]
[1625538806155,0.34943123,33770.0,33769.0,8.36833097]
[1625538806857,0.43691549,33770.0,33769.0,8.36833097]
[1625538807861,0.43691549,33770.0,33769.0,8.35956082]
[1625538808162,0.43691549,33770.0,33769.0,8.36833109]
[1625538809464,0.43691549,33770.0,33769.0,8.35956082]
[1625538810468,0.34943123,33770.0,33769.0,8.35956082]
[1625538811823,0.40843123,33770.0,33769.0,8.35956082]
[1625538812122,0.9324345,33770.0,33769.0,8.35956082]
[1625538812675,0.58300327,33770.0,33769.0,8.35956082]
[1625538813178,1.28172189,33770.0,33769.0,7.15046736]
[1625538813878,1.22272189,33770.0,33769.0,7.15046736]
[1625538814783,1.28172189,33770.0,33769.0,8.35866551]
[1625538814883,1.28172189,33770.0,33769.0,8.62897551]
[1625538818589,1.22272189,33770.0,33769.0,8.62897551]
[1625538818691,2.33081326,33770.0,33769.0,8.62897551]
[1625538819643,2.27181326,33770.0,33769.0,8.62897551]
[1625538820495,2.27181326,33770.0,33769.0,8.57197551]
[1625538820696,2.33081326,33770.0,33769.0,8.57197551]
[1625538820795,2.33081326,33770.0,33769.0,9.95300511]
[1625538820895,2.33081326,33770.0,33769.0,5.10850511]
[1625538820996,2.33081326,33770.0,33769.0,4.83819511]
[1625538821247,2.33081326,33770.0,33769.0,3.45716551]
[1625538822248,3.55552438,33770.0,33769.0,3.45716551]
[1625538822951,3.55552438,33770.0,33769.0,4.83955285]
[1625538823151,3.49652438,33770.0,33769.0,4.83955285]
[1625538823502,3.49652438,33770.0,33769.0,9.81695285]
[1625538828615,4.89825619,33770.0,33769.0,9.81695285]
[1625538829616,3.49652438,33770.0,33769.0,9.81695285]
[1625538832472,3.49652438,33770.0,33769.0,9.82854952]
[1625538833771,3.49652438,33770.0,33769.0,4.85114952]
[1625538833871,3.49652438,33770.0,33769.0,4.83955285]
[1625538834224,4.89893674,33770.0,33769.0,4.83955285]
[1625538834676,5.13951218,33770.0,33769.0,4.83955285]
[1625538834875,5.13951218,33770.0,33769.0,3.45716551]
[1625538836277,6.71761277,33770.0,33769.0,3.71563551]
[1625538836977,5.13951218,33770.0,33769.0,5.15704679]
[1625538837377,5.13951218,33770.0,33769.0,5.16864835]
[1625538837578,3.73709982,33770.0,33769.0,5.16864835]
[1625538838031,3.73709982,33770.0,33769.0,6.72561542]
[1625538838432,3.73709982,33770.0,33769.0,6.73438562]
[1625538838786,3.73709982,33770.0,33769.0,6.79338562]
[1625538838885,2.27181326,33770.0,33769.0,6.85238562]
[1625538839285,0.08779676,33770.0,33769.0,8.57951479]
[1625538839786,0.26320416,33772.0,33769.0,8.57951479]
[1625538840036,0.26320416,33772.0,33770.0,0.01156933]
[1625538840135,0.26320416,33772.0,33770.0,0.07056933]
[1625538840236,0.26319885,33773.0,33771.0,8.11095436]
[1625538840336,0.26319885,33773.0,33772.0,0.057]
[1625538840435,0.26319885,33773.0,33772.0,0.18655909]
[1625538840687,0.26319885,33773.0,33772.0,0.19883533]
[1625538840787,0.26319885,33773.0,33772.0,0.67998621]
[1625538840887,0.17526742,33774.0,33772.0,7.05930308]
[1625538841086,0.17526742,33774.0,33773.0,0.01155208]
[1625538841188,0.17526742,33774.0,33773.0,0.08282784]
[1625538841287,0.17526742,33774.0,33773.0,0.19882784]
[1625538841438,0.76617181,33776.0,33773.0,6.57481407]
[1625538841587,0.76617181,33776.0,33774.0,0.01155242]
[1625538841689,0.76617181,33776.0,33774.0,0.08282818]
[1625538841787,0.76617181,33776.0,33775.0,0.06855242]
[1625538841890,0.76617181,33776.0,33775.0,6.50370141]
[1625538841988,0.76617181,33776.0,33775.0,6.56620877]
[1625538842941,0.24057544,33776.0,33775.0,6.56620877]
[1625538843289,0.24057544,33776.0,33775.0,6.57497698]
[1625538844341,0.52522696,33779.0,33775.0,10.89247698]
[1625538844643,0.52522696,33779.0,33776.0,0.02380014]
[1625538844743,0.52522696,33779.0,33776.0,0.41620014]
[1625538844843,1.48104923,33782.0,33778.0,6.95849061]
[1625538844944,1.48104923,33782.0,33778.0,7.01749061]
[1625538845043,1.48104923,33782.0,33779.0,0.01152255]
[1625538845143,1.48104923,33782.0,33781.0,4.81350761]
[1625538845242,1.48104923,33782.0,33781.0,4.92950761]
[1625538845343,1.48104923,33782.0,33781.0,4.98850761]
[1625538845443,1.48104923,33782.0,33781.0,5.00353468]
[1625538845746,1.13120802,33782.0,33781.0,5.00353468]
[1625538846145,0.9562,33782.0,33781.0,6.55042794]
[1625538846546,0.9562,33782.0,33781.0,6.53890786]
[1625538846649,0.9562,33782.0,33781.0,4.9920146]
[1625538846797,0.9562,33782.0,33781.0,5.23259004]
[1625538849556,0.9562,33782.0,33781.0,5.17559004]
[1625538850306,1.48029225,33782.0,33781.0,3.85730215]
[1625538850407,1.48029225,33782.0,33781.0,4.14081215]
[1625538850708,0.9562,33782.0,33781.0,5.51384843]
[1625538852214,0.9562,33782.0,33781.0,5.52534104]
[1625538852412,0.9562,33782.0,33781.0,5.51384843]
[1625538852913,0.9562,33782.0,33781.0,5.52533234]
[1625538853415,0.9562,33782.0,33781.0,7.06750674]
[1625538855266,0.9562,33782.0,33781.0,7.05602283]
[1625538855865,0.9562,33782.0,33781.0,5.51384843]
[1625538856014,0.9562,33782.0,33781.0,5.39584843]
[1625538856114,0.9562,33782.0,33781.0,5.51384843]
[1625538856864,0.9562,33782.0,33781.0,5.45484843]
[1625538857770,0.9562,33782.0,33781.0,3.79830215]
[1625538859125,0.9562,33782.0,33781.0,3.73930215]
[1625538859325,0.9562,33782.0,33781.0,3.79830215]
[1625538859425,0.9562,33782.0,33781.0,4.13600215]
[1625538859725,0.9562,33782.0,33781.0,4.07700215]
[1625538860077,0.9562,33782.0,33781.0,5.44729939]
[1625538860683,0.9562,33782.0,33781.0,4.07700215]
[1625538860785,0.9562,33782.0,33781.0,4.01800215]
[1625538860884,0.9562,33782.0,33781.0,4.07700215]
[1625538861086,0.9562,33782.0,33781.0,4.13600215]
[1625538861739,0.9562,33782.0,33781.0,5.50598308]
[1625538862188,0.9562,33782.0,33781.0,4.13600215]
[1625538862838,0.9562,33782.0,33781.0,4.07700215]
[1625538863591,0.9562,33782.0,33781.0,3.79830215]
[1625538863941,0.9562,33782.0,33781.0,3.85730215]
[1625538864041,0.9562,33782.0,33781.0,4.18942215]
[1625538865397,0.9562,33782.0,33781.0,5.55803715]
[1625538865748,0.9562,33782.0,33781.0,5.56949122]
[1625538866201,0.9562,33782.0,33781.0,7.10769124]
[1625538866799,0.8658,33782.0,33781.0,7.10769124]
[1625538866900,0.8658,33782.0,33781.0,7.10418425]
[1625538867149,0.8658,33782.0,33781.0,7.10769068]
[1625538867250,1.38986261,33792.0,33781.0,7.10769068]
[1625538867450,1.38986261,33792.0,33788.0,0.057]
[1625538867550,1.38986261,33792.0,33788.0,0.116]
[1625538867652,1.38986261,33792.0,33788.0,0.42712]
[1625538867750,1.38986261,33792.0,33788.0,0.4306263]
[1625538867953,1.21557544,33792.0,33791.0,0.51238578]
[1625538868154,1.21557544,33792.0,33791.0,0.62838578]
[1625538868453,1.21557544,33792.0,33791.0,0.63189207]
[1625538868554,1.21557544,33792.0,33791.0,0.63161711]
[1625538868854,1.21557544,33792.0,33791.0,0.69061711]
[1625538869004,1.21557544,33792.0,33791.0,1.17176799]
[1625538869107,1.21557544,33792.0,33791.0,1.85368039]
[1625538869305,0.975,33792.0,33791.0,1.85368039]
[1625538869956,0.975,33792.0,33791.0,2.87563236]
[1625538871006,0.975,33792.0,33791.0,3.1162078]
[1625538871207,0.52201447,33799.0,33791.0,3.1162078]
[1625538871509,0.52201447,33799.0,33795.0,0.17017049]
[1625538871609,0.52201447,33799.0,33795.0,0.22917049]
[1625538871707,0.52201447,33799.0,33795.0,0.54568049]
[1625538871907,0.52201447,33799.0,33796.0,0.003506]
[1625538872107,0.52201447,33799.0,33796.0,0.062506]
[1625538872208,0.52201447,33799.0,33796.0,0.003506]
[1625538872308,0.52201447,33799.0,33796.0,0.062506]
[1625538872507,0.52201447,33799.0,33797.0,0.00350598]
[1625538872612,0.8697727,33798.0,33797.0,0.00350598]
[1625538873013,0.8697727,33798.0,33797.0,0.24057544]
[1625538873014,0.9287727,33798.0,33797.0,0.24057544]
[1625538873111,1.27639152,33798.0,33797.0,0.24057544]
[1625538873461,1.33539152,33798.0,33797.0,0.24057544]
[1625538873563,2.37870722,33798.0,33797.0,0.24408162]
[1625538873763,2.37870722,33798.0,33797.0,0.00350618]
[1625538873963,4.98713224,33798.0,33797.0,0.00350618]
[1625538874063,5.31146224,33798.0,33791.0,0.72172632]
[1625538874313,5.31146224,33798.0,33792.0,0.00350683]
[1625538874415,1.21735601,33794.0,33792.0,0.00350683]
[1625538874513,1.27635601,33794.0,33792.0,0.00350683]
[1625538874613,1.33535601,33794.0,33792.0,0.00350683]
[1625538874915,2.261353,33793.0,33792.0,0.00350683]
[1625538875014,2.86050388,33793.0,33792.0,0.00350683]
[1625538875317,4.07805764,33793.0,33792.0,0.00350683]
[1625538877268,2.86050388,33793.0,33792.0,0.00350683]
[1625538877770,4.01919941,33793.0,33792.0,0.00350683]
[1625538877967,4.07819941,33793.0,33792.0,0.00350683]
[1625538878117,4.01919941,33793.0,33792.0,0.00350683]
[1625538878322,2.80150388,33793.0,33792.0,0.00350683]
[1625538883430,2.86050388,33793.0,33792.0,0.00350683]
[1625538883530,2.80150388,33793.0,33792.0,0.00350683]
[1625538885431,2.74250388,33793.0,33792.0,0.00350683]
[1625538885632,2.80150388,33793.0,33792.0,0.00350683]
[1625538885833,2.74250388,33793.0,33792.0,0.00350683]
[1625538885936,1.69886938,33793.0,33792.0,0.00350683]
[1625538886486,1.69886938,33793.0,33792.0,0.06050683]
[1625538886687,1.00376768,33793.0,33792.0,0.06050683]
[1625538886784,1.00376768,33793.0,33792.0,0.00350683]
[1625538886985,1.00376768,33793.0,33792.0,0.06050683]
[1625538887086,1.00376768,33793.0,33792.0,0.11950683]
[1625538887287,0.65541451,33793.0,33792.0,0.11950683]
[1625538887385,0.65541451,33793.0,33792.0,0.06050683]
[1625538887486,0.65541451,33793.0,33792.0,0.00350683]
[1625538887585,0.54015088,33793.0,33792.0,0.00350683]
[1625538887686,0.54015088,33793.0,33792.0,0.17455246]
[1625538888191,1.75912818,33793.0,33792.0,0.00350683]
[1625538888843,1.70012818,33793.0,33792.0,0.00350683]
[1625538889344,0.48115088,33793.0,33792.0,0.00350683]
[1625538889796,1.70055706,33793.0,33792.0,0.00350683]
[1625538890351,2.74596718,33793.0,33792.0,0.00350683]
[1625538890749,1.75955706,33793.0,33792.0,0.00350683]
[1625538891251,2.80502266,33793.0,33792.0,0.00350683]
[1625538891803,2.86402266,33793.0,33792.0,5.05400683]
[1625538892004,2.80502266,33793.0,33792.0,5.05400683]
[1625538893008,2.86402266,33793.0,33792.0,5.05400683]
[1625538893609,4.0842575,33793.0,33792.0,5.05400683]
[1625538893907,4.0842575,33793.0,33792.0,0.00350683]
[1625538894107,4.0252575,33793.0,33792.0,0.00350683]
[1625538896413,5.42208639,33793.0,33792.0,0.51944857]
[1625538898420,5.42208639,33793.0,33792.0,0.52043001]
[1625538899469,5.42208639,33793.0,33792.0,0.86512192]
[1625538899868,5.42208639,33793.0,33792.0,0.52043001]
[1625538900168,5.42208639,33793.0,33792.0,1.20969799]
[1625538900367,5.36308639,33793.0,33792.0,1.20969799]
[1625538901519,5.36308639,33793.0,33792.0,2.2436897]